fUST/lending_fUST_20251106
["ID","MTS","AMOUNT","RATE_DAILY","PERIOD"]
[393238895,1762369838507,-240.09,0.000144,2]
[393238897,1762369838516,-240.09,0.000144,2]
[393238900,1762369838526,-240.09,0.000144,2]
[393238901,1762369838535,-240.09,0.000144,2]
[393238903,1762369838544,-240.09,0.000144,2]
[393238905,1762369838554,-240.09,0.000144,2]
[393238908,1762369838564,-240.09,0.000144,2]
[393238909,1762369838577,-240.09,0.000144,2]
[393238911,1762369838589,-240.09,0.000144,2]
[393238913,1762369838599,-240.09,0.000144,2]
[393238915,1762369838608,-240.09,0.000144,2]
[393238917,1762369838617,-240.09,0.000144,2]
[393238919,1762369838630,-240.09,0.000144,2]
[393238921,1762369838638,-240.09,0.000144,2]
[393238923,1762369838648,-240.09,0.000144,2]
[393238926,1762369838659,-240.09,0.000144,2]
[393238928,1762369838669,-240.09,0.000144,2]
[393238929,1762369838679,-240.09,0.000144,2]
[393238931,1762369838689,-155.69944327,0.00014428,2]
[393238933,1762369838698,-151.0,0.00014436,2]
[393238935,1762369838708,-1288.35845522,0.00014436,2]
[393238937,1762369838720,-5934.30214614,0.00014436,2]
[393238939,1762369838730,-2081.45,0.00014452,2]
[393238941,1762369838739,-14655.446616,0.00014454,2]
[393238943,1762369838748,-151.0,0.00014454,2]
[393238945,1762369838758,-151.976338,0.00014454,2]
[393238947,1762369838767,-151.0,0.00014454,2]
[393238949,1762369838778,-1909.79,0.00014492,2]
[393238951,1762369838788,-152.444482,0.00014493,2]
[393238953,1762369838797,-500.0,0.00014494,2]
[393238955,1762369838807,-500.0,0.00014495,2]
[393238957,1762369838817,-500.0,0.00014495,2]
[393238959,1762369838826,-151.0,0.00014495,2]
[393238961,1762369838835,-151.0,0.00014495,2]
[393238963,1762369838845,-151.0,0.00014495,2]
[393238965,1762369838854,-432.180271,0.00014495,2]
[393238967,1762369838863,-432.180271,0.00014495,2]
[393238969,1762369838872,-432.180271,0.00014495,2]
[393238971,1762369838882,-432.180271,0.00014495,2]
[393238973,1762369838891,-856.077039,0.00014495,2]
[393238975,1762369838909,-856.077039,0.00014495,2]
[393238976,1762369838922,-1909.79,0.00014495,2]
[393238977,1762369838932,-500.0,0.00014496,2]
[393238978,1762369838942,-500.0,0.00014497,2]
[393238979,1762369838952,-500.0,0.00014497,2]
[393238980,1762369838963,-500.0,0.00014497,2]
[393238981,1762369838972,-500.0,0.00014497,2]
[393238982,1762369838982,-151.0,0.00014497,2]
[393238983,1762369838992,-432.180271,0.00014497,2]
[393238984,1762369839003,-432.180271,0.00014497,2]
[393238985,1762369839012,-432.180271,0.00014497,2]
[393238986,1762369839022,-432.180271,0.00014497,2]
[393238987,1762369839033,-856.077039,0.00014497,2]
[393238988,1762369839042,-856.077039,0.00014497,2]
[393238989,1762369839051,-151.0,0.00014497,2]
[393238990,1762369839061,-151.0,0.00014497,2]
[393238991,1762369839070,-500.0,0.00014497,2]
[393238992,1762369839081,-500.0,0.00014497,2]
[393238993,1762369839092,-151.0,0.00014497,2]
[393238995,1762369839103,-151.0,0.00014497,2]
[393238997,1762369839112,-151.0,0.00014497,2]
[393238998,1762369839121,-151.0,0.00014497,2]
[393239001,1762369839132,-151.59237286,0.00014497,2]
[393239003,1762369839143,-500.0,0.00014497,2]
[393239005,1762369839152,-151.0,0.00014497,2]
[393239006,1762369839162,-151.0,0.00014497,2]
[393239008,1762369839172,-500.0,0.00014497,2]
[393239010,1762369839183,-151.0,0.00014497,2]
[393239012,1762369839192,-151.0,0.00014497,2]
[393239014,1762369839203,-490.34407463,0.00014498,2]
[393239027,1762369839322,-167.813038,0.00014499,2]
[393239029,1762369839333,-151.0,0.00014499,2]
[393239031,1762369839342,-151.0,0.000145,2]
[393239033,1762369839352,-151.0,0.000145,2]
[393239035,1762369839361,-432.180271,0.00014512,2]
[393239037,1762369839371,-432.180271,0.00014512,2]
[393239039,1762369839380,-432.180271,0.00014512,2]
[393239041,1762369839390,-432.180271,0.00014512,2]
[393239043,1762369839399,-856.077039,0.00014512,2]
[393239045,1762369839409,-856.077039,0.00014512,2]
[393239047,1762369839418,-269.244321,0.00014512,2]
[393239049,1762369839427,-2101.55724794,0.00014523,2]
[393239051,1762369839436,-432.78732376,0.00014524,2]
[393239053,1762369839445,-155.0,0.00014526,2]
[393239055,1762369839455,-1909.79,0.00014526,2]
[393239057,1762369839464,-1909.79,0.00014526,2]
[393239059,1762369839473,-1909.79,0.00014526,2]
[393239061,1762369839482,-432.180271,0.00014527,2]
[393239063,1762369839490,-432.180271,0.00014527,2]
[393239065,1762369839499,-432.180271,0.00014527,2]
[393239067,1762369839508,-432.180271,0.00014527,2]
[393239069,1762369839517,-432.180271,0.00014527,2]
[393239071,1762369839526,-432.180271,0.00014527,2]
[393239073,1762369839536,-432.180271,0.00014527,2]
[393239075,1762369839546,-432.18028,0.00014527,2]
[393239077,1762369839556,-856.077039,0.00014527,2]
[393239079,1762369839566,-856.077039,0.00014527,2]
[393239081,1762369839578,-856.077039,0.00014527,2]
[393239083,1762369839589,-856.077039,0.00014527,2]
[393239085,1762369839598,-856.077039,0.00014527,2]
[393239087,1762369839607,-856.07704,0.00014527,2]
[393239089,1762369839617,-151.0,0.00014552,2]
[393239091,1762369839626,-198.0,0.00014552,2]
[393239093,1762369839635,-500.0,0.00014552,2]
[393239095,1762369839644,-500.0,0.00014552,2]
[393239097,1762369839655,-151.0,0.00014552,2]
[393239099,1762369839665,-151.0,0.00014552,2]
[393239101,1762369839675,-151.0,0.00014552,2]
[393239103,1762369839684,-542.04631888,0.00014552,2]
[393239105,1762369839693,-151.0,0.00014552,2]
[393239107,1762369839702,-500.0,0.00014552,2]
[393239109,1762369839711,-151.0,0.00014552,2]
[393239111,1762369839720,-151.40792839,0.00014552,2]
[393239113,1762369839730,-297.35,0.00014566,2]
[393239114,1762369839739,-297.35,0.00014581,2]
[393239117,1762369839748,-297.33,0.00014595,2]
[393239120,1762369839757,-500.0,0.00014607,2]
[393239123,1762369839767,-500.0,0.00014607,2]
[393239126,1762369839776,-151.44563484,0.00014607,2]
[393239128,1762369839785,-198.0,0.00014607,2]
[393239130,1762369839794,-286.70110518,0.00014607,2]
[393239132,1762369839803,-500.0,0.00014607,2]
[393239134,1762369839812,-287.49198213,0.00014607,2]
[393239136,1762369839821,-264.54725792,0.00014625,2]
[393239138,1762369839830,-2101.55724794,0.00014649,2]
[393239139,1762369839840,-1041.27111843,0.00014655,2]
[393239141,1762369839849,-500.0,0.00014661,2]
[393239143,1762369839858,-500.0,0.00014661,2]
[393239147,1762369839868,-601.86,0.00014668,2]
[393239151,1762369839878,-398.19,0.00014674,2]
[393239154,1762369839887,-237.58535448,0.00014685,2]
[393239156,1762369839897,-155.0,0.00014699,2]
[393239158,1762369839906,-151.0,0.000147,2]
[393239159,1762369839915,-151.0,0.000147,2]
[393239161,1762369839925,-8253.24243651,0.00014716,2]
[393239163,1762369839935,-500.0,0.00014716,2]
[393239166,1762369839944,-374.42550605,0.00014716,2]
[393239168,1762369839953,-500.0,0.00014728,2]
[393239170,1762369839963,-1909.79,0.00014728,2]
[393239171,1762369839972,-1909.79,0.00014728,2]
[393239173,1762369839982,-1909.79,0.00014728,2]
[393239175,1762369839991,-1909.79,0.00014728,2]
[393239178,1762369840000,-1909.79,0.00014728,2]
[393239180,1762369840010,-1909.79,0.00014728,2]
[393239182,1762369840019,-1909.79,0.00014728,2]
[393239184,1762369840028,-1909.79,0.00014728,2]
[393239186,1762369840038,-1909.79,0.00014728,2]
[393239188,1762369840047,-1909.79,0.00014728,2]
[393239190,1762369840056,-1910.00696356,0.00014728,2]
[393239192,1762369840065,-244506.59967653,0.00014729,2]
[393239194,1762369840074,-500.0,0.0001473,2]
[393239196,1762369840083,-500.0,0.0001473,2]
[393239198,1762369840092,-500.0,0.0001473,2]
[393239200,1762369840101,-500.0,0.0001473,2]
[393239202,1762369840110,-500.0,0.0001473,2]
[393239204,1762369840119,-500.0,0.0001473,2]
[393239205,1762369840128,-500.0,0.0001473,2]
[393239207,1762369840137,-500.0,0.0001473,2]
[393239209,1762369840146,-500.0,0.0001473,2]
[393239211,1762369840155,-500.0,0.0001473,2]
[393239213,1762369840165,-500.0,0.0001473,2]
[393239215,1762369840175,-500.0,0.0001473,2]
[393239217,1762369840185,-500.0,0.0001473,2]
[393239219,1762369840194,-457.05450649,0.0001473,2]
[393239221,1762369840203,-500.0,0.00014741,2]
[393239223,1762369840212,-500.0,0.00014741,2]
[393239225,1762369840221,-500.0,0.00014742,2]
[393239227,1762369840229,-292.46025161,0.00014742,2]
[393239229,1762369840239,-471.58148465,0.00014742,2]
[393239231,1762369840247,-500.0,0.00014742,2]
[393239233,1762369840256,-324.58850172,0.0001477,2]
[393239235,1762369840266,-500.0,0.00014771,2]
[393239237,1762369840275,-467.50766253,0.00014771,2]
[393239239,1762369840284,-500.0,0.00014773,2]
[393239241,1762369840293,-166.06150009,0.00014773,2]
[393239243,1762369840302,-500.0,0.00014773,2]
[393239245,1762369840310,-281.20728234,0.00014773,2]
[393239247,1762369840319,-500.0,0.00014773,2]
[393239249,1762369840328,-503.21150772,0.00014773,2]
[393239250,1762369840337,-500.0,0.00014773,2]
[393239252,1762369840346,-500.0,0.00014773,2]
[393239254,1762369840355,-2101.55724794,0.00014775,2]
[393239256,1762369840363,-309.42652211,0.00014787,2]
[393239258,1762369840372,-271.52611941,0.00014791,2]
[393239260,1762369840382,-2326.5713431,0.00014793,2]
[393239262,1762369840390,-309.2994786,0.000148,2]
[393239264,1762369840400,-19627.164312,0.00014822,2]
[393239266,1762369840409,-424.25956157,0.00014897,2]
[393239268,1762369840420,-2101.55724794,0.00014901,2]
[393239270,1762369840430,-398.19,0.00014948,2]
[393239272,1762369840439,-500.0,0.00014999,2]
[393239274,1762369840448,-500.0,0.00014999,2]
[393239276,1762369840457,-500.0,0.00014999,2]
[393239278,1762369840466,-213.59380327,0.00014999,2]
[393239280,1762369840475,-500.0,0.00014999,2]
[393239283,1762369840484,-151.0,0.00015,2]
[393239285,1762369840494,-160.0,0.00015,2]
[393239287,1762369840503,-7076.33521865,0.00015,2]
[393239289,1762369840511,-151.0,0.00015,2]
[393239291,1762369840520,-500.0,0.00015001,2]
[393239293,1762369840530,-500.0,0.00015001,2]
[393239295,1762369840539,-379.42440938,0.00015001,2]
[393239297,1762369840548,-540.00602318,0.00015001,2]
[393239299,1762369840556,-500.0,0.00015001,2]
[393239301,1762369840566,-649.2742283,0.00015001,2]
[393239303,1762369840578,-500.0,0.00015001,2]
[393239305,1762369840587,-500.0,0.00015001,2]
[393239307,1762369840596,-500.0,0.00015001,2]
[393239309,1762369840605,-500.0,0.00015001,2]
[393239311,1762369840614,-500.0,0.00015001,2]
[393239313,1762369840625,-500.0,0.00015001,2]
[393239315,1762369840634,-500.0,0.00015001,2]
[393239317,1762369840643,-500.0,0.00015001,2]
[393239319,1762369840655,-500.0,0.00015001,2]
[393239321,1762369840665,-500.0,0.00015001,2]
[393239323,1762369840675,-500.0,0.00015001,2]
[393239325,1762369840684,-583.00107377,0.00015001,2]
[393239327,1762369840693,-500.0,0.00015001,2]
[393239329,1762369840702,-185.63865519,0.00015001,2]
[393239331,1762369840711,-150.0,0.00015001,2]
[393239333,1762369840721,-200.0,0.00015027,2]
[393239335,1762369840730,-160.45282516,0.00015027,2]
[393239337,1762369840739,-100000.0,0.00015028,2]
[393239339,1762369840748,-628.0,0.0001503,2]
[393239341,1762369840757,-2165.0,0.0001503,2]
[393239343,1762369840766,-986.0,0.0001503,2]
[393239346,1762369840775,-500.0,0.00015045,2]
[393239348,1762369840785,-4397.0,0.00015045,2]
[393239350,1762369840794,-500.0,0.00015068,2]
[393239352,1762369840803,-500.0,0.00015073,2]
[393239354,1762369840812,-500.0,0.00015073,2]
[393239355,1762369840821,-500.0,0.00015073,2]
[393239357,1762369840831,-500.0,0.00015073,2]
[393239359,1762369840840,-500.0,0.00015073,2]
[393239361,1762369840848,-500.0,0.00015073,2]
[393239364,1762369840858,-500.0,0.00015073,2]
[393239366,1762369840868,-565.59758516,0.00015073,2]
[393239368,1762369840877,-500.0,0.00015073,2]
[393239370,1762369840886,-500.0,0.00015073,2]
[393239371,1762369840895,-500.0,0.00015073,2]
[393239373,1762369840904,-503.44434261,0.00015073,2]
[393239375,1762369840914,-500.0,0.00015073,2]
[393239378,1762369840924,-503.95083039,0.00015073,2]
[393239379,1762369840935,-500.9181771,0.00015073,2]
[393239381,1762369840952,-215.43637717,0.00015073,2]
[393239384,1762369840976,-500.0,0.00015073,2]
[393239385,1762369840986,-500.0,0.00015073,2]
[393239387,1762369840996,-500.0,0.00015073,2]
[393239389,1762369841005,-500.0,0.00015073,2]
[393239391,1762369841015,-578.47903196,0.00015073,2]
[393239393,1762369841024,-500.0,0.00015073,2]
[393239395,1762369841033,-562.57688238,0.00015073,2]
[393239398,1762369841043,-500.0,0.00015073,2]
[393239400,1762369841053,-576.93279283,0.00015073,2]
[393239402,1762369841062,-500.0,0.00015073,2]
[393239404,1762369841072,-506.40776591,0.00015073,2]
[393239406,1762369841082,-500.0,0.00015073,2]
[393239409,1762369841103,-500.0,0.00015073,2]
[393239411,1762369841116,-500.0,0.00015073,2]
[393239413,1762369841127,-500.0,0.00015073,2]
[393239415,1762369841137,-500.0,0.00015073,2]
[393239417,1762369841147,-500.0,0.00015073,2]
[393239419,1762369841157,-500.0,0.00015073,2]
[393239421,1762369841167,-500.0,0.00015073,2]
[393239423,1762369841181,-500.0,0.00015073,2]
[393239425,1762369841193,-500.0,0.00015073,2]
[393239427,1762369841203,-500.0,0.00015073,2]
[393239429,1762369841213,-512.01514079,0.00015073,2]
[393239431,1762369841223,-500.0,0.00015073,2]
[393239433,1762369841232,-505.01628947,0.00015073,2]
[393239435,1762369841242,-500.0,0.00015073,2]
[393239437,1762369841252,-424.30911472,0.00015073,2]
[393239439,1762369841261,-500.0,0.00015073,2]
[393239441,1762369841271,-504.26597028,0.00015073,2]
[393239443,1762369841280,-500.0,0.00015073,2]
[393239445,1762369841290,-500.0,0.00015073,2]
[393239448,1762369841300,-500.0,0.00015073,2]
[393239450,1762369841310,-158.1406276,0.00015073,2]
[393239452,1762369841320,-500.0,0.00015073,2]
[393239454,1762369841330,-500.0,0.00015073,2]
[393239456,1762369841340,-230.75787103,0.00015073,2]
[393239458,1762369841350,-500.0,0.00015073,2]
[393239460,1762369841359,-500.0,0.00015073,2]
[393239462,1762369841369,-170.29163485,0.00015073,2]
[393239464,1762369841378,-500.0,0.00015073,2]
[393239466,1762369841388,-500.0,0.00015073,2]
[393239468,1762369841398,-500.0,0.00015073,2]
[393239470,1762369841408,-500.0,0.00015073,2]
[393239472,1762369841419,-500.0,0.00015073,2]
[393239474,1762369841430,-500.0,0.00015073,2]
[393239476,1762369841440,-502.89900784,0.00015073,2]
[393239478,1762369841450,-500.0,0.00015199,2]
[393239480,1762369841460,-500.0,0.00015199,2]
[393239482,1762369841469,-500.0,0.00015199,2]
[393239484,1762369841478,-500.0,0.00015199,2]
[393239486,1762369841488,-500.0,0.00015199,2]
[393239488,1762369841498,-500.0,0.00015199,2]
[393239489,1762369841507,-500.0,0.00015199,2]
[393239490,1762369841516,-500.0,0.00015199,2]
[393239491,1762369841526,-500.0,0.00015199,2]
[393239492,1762369841535,-500.0,0.00015199,2]
[393239493,1762369841544,-500.0,0.00015199,2]
[393239494,1762369841555,-500.0,0.00015199,2]
[393239500,1762369841685,-500.0,0.00015199,2]
[393239502,1762369841696,-500.0,0.00015199,2]
[393239504,1762369841705,-500.0,0.00015199,2]
[393239506,1762369841714,-522.21025299,0.00015199,2]
[393239508,1762369841723,-500.0,0.00015199,2]
[393239510,1762369841732,-500.0,0.00015199,2]
[393239512,1762369841741,-500.0,0.00015199,2]
[393239514,1762369841750,-500.0,0.00015199,2]
[393239516,1762369841759,-500.0,0.00015199,2]
[393239518,1762369841768,-500.0,0.00015199,2]
[393239520,1762369841777,-514.40730907,0.00015199,2]
[393239522,1762369841786,-500.0,0.00015199,2]
[393239524,1762369841795,-500.0,0.00015199,2]
[393239526,1762369841805,-500.0,0.00015199,2]
[393239528,1762369841814,-500.0,0.00015199,2]
[393239530,1762369841823,-500.0,0.00015199,2]
[393239532,1762369841832,-235.45274208,0.00015199,2]
[393239534,1762369841841,-500.0,0.00015199,2]
[393239536,1762369841851,-1285.16024785,0.000152,2]
[393239538,1762369841860,-151.0,0.000152,2]
[393239540,1762369841869,-151.0,0.000152,2]
[393239542,1762369841878,-398.19,0.00015222,2]
[393239544,1762369841887,-1444.27147594,0.00015233,2]
[393239546,1762369841897,-239.15056315,0.00015264,2]
[393239548,1762369841906,-207.39,0.00015272,2]
[393239550,1762369841915,-464.01609559,0.00015294,2]
[393239552,1762369841925,-430.47101367,0.00015295,2]
[393239554,1762369841935,-600.0,0.00015306,2]
[393239556,1762369841944,-555.39486859,0.00015319,2]
[393239558,1762369841954,-1000.0,0.00015321,2]
[393239560,1762369841963,-503.33136879,0.00015321,2]
[393239562,1762369841972,-1000.0,0.00015321,2]
[393239564,1762369841981,-1000.0,0.00015321,2]
[393239566,1762369841990,-1002.43931167,0.00015321,2]
[393239568,1762369842000,-765.28180207,0.00015324,2]
[393239570,1762369842009,-1195.75281574,0.00015354,2]
[393239572,1762369842018,-1203.73,0.00015366,2]
[393239573,1762369842027,-449.39,0.00015374,2]
[393239576,1762369842036,-835.22897207,0.00015389,2]
[393239578,1762369842047,-300.0,0.000154,2]
[393239580,1762369842056,-300.0,0.000154,2]
[393239582,1762369842065,-300.0,0.000154,2]
[393239584,1762369842074,-300.0,0.000154,2]
[393239585,1762369842084,-300.0,0.000154,2]
[393239587,1762369842093,-300.0,0.000154,2]
[393239589,1762369842102,-300.0,0.000154,2]
[393239592,1762369842113,-300.0,0.000154,2]
[393239593,1762369842123,-300.0,0.000154,2]
[393239595,1762369842132,-300.0,0.000154,2]
[393239597,1762369842142,-300.0,0.000154,2]
[393239599,1762369842151,-300.0,0.000154,2]
[393239601,1762369842160,-300.0,0.000154,2]
[393239603,1762369842170,-300.0,0.000154,2]
[393239605,1762369842179,-300.0,0.000154,2]
[393239607,1762369842189,-250.0,0.00015405,2]
[393239609,1762369842198,-250.0,0.00015405,2]
[393239611,1762369842210,-215.82,0.00015405,2]
[393239613,1762369842220,-151.24,0.00015405,2]
[393239615,1762369842229,-150.0,0.00015405,2]
[393239617,1762369842239,-187.147,0.00015405,2]
[393239619,1762369842248,-156.0,0.00015405,2]
[393239621,1762369842258,-154.922,0.00015405,2]
[393239624,1762369842268,-3061.12720829,0.00015443,2]
[393239625,1762369842277,-3874.239123,0.00015473,2]
[393239628,1762369842288,-1484.8515059,0.00015483,2]
[393239630,1762369842297,-153.0,0.0001549,2]
[393239631,1762369842306,-153.0,0.0001549,2]
[393239633,1762369842316,-153.0,0.0001549,2]
[393239636,1762369842325,-153.0,0.0001549,2]
[393239638,1762369842335,-153.0,0.0001549,2]
[393239640,1762369842344,-153.0,0.0001549,2]
[393239642,1762369842353,-153.0,0.0001549,2]
[393239643,1762369842362,-153.0,0.0001549,2]
[393239646,1762369842371,-398.2198877,0.00015496,2]
[393239648,1762369842380,-151.0,0.000155,2]
[393239650,1762369842389,-151.0,0.000155,2]
[393239652,1762369842398,-4783.01126296,0.00015502,2]
[393239654,1762369842407,-5787.44362818,0.00015532,2]
[393239656,1762369842416,-6887.53621866,0.00015561,2]
[393239658,1762369842425,-2320.08047797,0.00015579,2]
[393239660,1762369842434,-8083.2890344,0.00015591,2]
[393239662,1762369842444,-1000.0,0.00015621,2]
[393239664,1762369842453,-1099.1967181,0.00015621,2]
[393239666,1762369842462,-659.86810407,0.00015621,2]
[393239667,1762369842472,-1000.0,0.00015621,2]
[393239669,1762369842481,-1004.23985669,0.00015621,2]
[393239671,1762369842490,-1000.0,0.00015621,2]
[393239673,1762369842499,-1000.0,0.00015621,2]
[393239675,1762369842508,-1008.50829071,0.00015621,2]
[393239677,1762369842517,-1000.0,0.00015621,2]
[393239679,1762369842526,-390.56811888,0.00015621,2]
[393239681,1762369842535,-1000.0,0.00015621,2]
[393239683,1762369842544,-1000.0,0.00015621,2]
[393239685,1762369842554,-901.53064307,0.00015621,2]
[393239687,1762369842562,-1000.0,0.00015621,2]
[393239689,1762369842573,-1000.0,0.00015621,2]
[393239691,1762369842584,-503.21903022,0.00015621,2]
[393239693,1762369842594,-287.10373796,0.00015621,2]
[393239695,1762369842604,-1000.0,0.00015621,2]
[393239698,1762369842614,-642.86550056,0.00015621,2]
[393239700,1762369842627,-1000.0,0.00015621,2]
[393239702,1762369842636,-1000.0,0.00015621,2]
[393239704,1762369842648,-986.31933165,0.00015621,2]
[393239706,1762369842657,-856.2149968,0.00015621,2]
[393239708,1762369842666,-1000.0,0.00015621,2]
[393239710,1762369842675,-1000.0,0.00015621,2]
[393239712,1762369842684,-1000.0,0.00015621,2]
[393239714,1762369842694,-1000.0,0.00015621,2]
[393239716,1762369842703,-1000.0,0.00015621,2]
[393239718,1762369842712,-1000.0,0.00015621,2]
[393239720,1762369842721,-1000.0,0.00015621,2]
[393239722,1762369842731,-1000.0,0.00015621,2]
[393239724,1762369842740,-1000.0,0.00015621,2]
[393239726,1762369842749,-380.2089548,0.00015621,2]
[393239728,1762369842758,-728.38381242,0.00015621,2]
[393239731,1762369842767,-1002.81085202,0.00015621,2]
[393239732,1762369842776,-1000.0,0.00015621,2]
[393239735,1762369842785,-1000.0,0.00015621,2]
[393239738,1762369842794,-1000.0,0.00015621,2]
[393239742,1762369842804,-1000.0,0.00015621,2]
[393239745,1762369842813,-1000.0,0.00015621,2]
[393239748,1762369842823,-1000.0,0.00015621,2]
[393239751,1762369842835,-797.55058667,0.00015621,2]
[393239754,1762369842844,-1000.0,0.00015621,2]
[393239756,1762369842854,-1000.0,0.00015621,2]
[393239758,1762369842863,-9374.7020754,0.00015622,2]
[393239760,1762369842873,-10761.77534165,0.00015651,2]
[393239762,1762369842882,-3340.91588827,0.00015673,2]
[393239765,1762369842892,-153.0,0.00015676,2]
[393239766,1762369842901,-153.0,0.00015676,2]
[393239768,1762369842910,-153.0,0.00015676,2]
[393239771,1762369842921,-153.0,0.00015676,2]
[393239773,1762369842930,-153.0,0.00015676,2]
[393239775,1762369842940,-153.0,0.00015676,2]
[393239780,1762369842950,-153.0,0.00015676,2]
[393239781,1762369842959,-153.0,0.00015676,2]
[393239783,1762369842969,-153.0,0.00015676,2]
[393239786,1762369842979,-153.0,0.00015676,2]
[393239787,1762369842987,-153.0,0.00015676,2]
[393239789,1762369842996,-12244.50883317,0.00015681,2]
[393239792,1762369843006,-151.0,0.000157,2]
[393239793,1762369843016,-151.0,0.000157,2]
[393239796,1762369843026,-960.47908108,0.00015732,2]
[393239799,1762369843036,-160.0,0.00015743,2]
[393239803,1762369843045,-1680.0,0.00015763,2]
[393239807,1762369843055,-420.0,0.00015764,2]
[393239809,1762369843065,-420.0,0.00015764,2]
[393239811,1762369843075,-420.0,0.00015764,2]
[393239813,1762369843085,-4547.35773682,0.00015768,2]
[393239815,1762369843095,-1680.0,0.00015834,2]
[393239817,1762369843105,-168.77731094,0.00015837,2]
[393239819,1762369843114,-5939.4060236,0.00015863,2]
[393239821,1762369843124,-1500.0,0.00015868,2]
[393239823,1762369843134,-1027.69603334,0.00015868,2]
[393239825,1762369843143,-1500.0,0.00015868,2]
[393239827,1762369843154,-214.11230821,0.00016,2]
[393239829,1762369843163,-151.0,0.00016,2]
[393239830,1762369843173,-151.0,0.00016,2]
[393239832,1762369843184,-14655.446616,0.00016054,2]
[393239834,1762369843193,-1805.59,0.00016064,2]
[393239836,1762369843202,-1000.0,0.00016164,2]
[393239837,1762369843211,-647.47854055,0.00016168,2]
[393239838,1762369843222,-1500.0,0.00016168,2]
[393239839,1762369843231,-1007.42107441,0.00016168,2]
[393239840,1762369843240,-1500.0,0.00016168,2]
[393239841,1762369843250,-380.1224535,0.00016168,2]
[393239842,1762369843259,-1500.0,0.00016168,2]
[393239843,1762369843269,-1500.0,0.00016168,2]
[393239844,1762369843279,-991.40543003,0.00016168,2]
[393239845,1762369843290,-1500.0,0.00016168,2]
[393239846,1762369843300,-1500.0,0.00016168,2]
[393239847,1762369843310,-1500.0,0.00016168,2]
[393239848,1762369843320,-1008.39586916,0.00016168,2]
[393239849,1762369843330,-503.65972332,0.00016168,2]
[393239850,1762369843340,-1500.0,0.00016168,2]
[393239851,1762369843350,-1500.0,0.00016168,2]
[393239852,1762369843359,-1500.0,0.00016168,2]
[393239853,1762369843369,-1500.0,0.00016168,2]
[393239854,1762369843378,-1500.0,0.00016168,2]
[393239855,1762369843388,-1500.0,0.00016168,2]
[393239856,1762369843398,-1500.0,0.00016168,2]
[393239857,1762369843407,-1500.0,0.00016168,2]
[393239858,1762369843417,-1500.0,0.00016168,2]
[393239859,1762369843426,-1500.0,0.00016168,2]
[393239860,1762369843442,-1500.0,0.00016168,2]
[393239861,1762369843451,-1500.0,0.00016168,2]
[393239862,1762369843460,-1500.0,0.00016168,2]
[393239863,1762369843469,-1500.0,0.00016168,2]
[393239864,1762369843479,-1500.0,0.00016168,2]
[393239865,1762369843489,-1500.0,0.00016168,2]
[393239866,1762369843498,-364.985564,0.00016173,2]
[393239867,1762369843507,-151.0,0.000162,2]
[393239868,1762369843517,-151.0,0.000162,2]
[393239869,1762369843526,-153.0,0.00016224,2]
[393239870,1762369843535,-153.0,0.00016224,2]
[393239871,1762369843544,-153.0,0.00016224,2]
[393239872,1762369843554,-385.14104022,0.00016275,2]